bitfinex/quotes_SOLUSD_20251228
["timestamp","ask_amount","ask_price","bid_price","bid_amount"]
[1766913101767,0.72,124.4,124.37,22.72027779]
[1766913102362,0.72,124.4,124.37,24.65928851]
[1766913105164,0.72,124.4,124.38,1.93901072]
[1766913109371,0.72,124.4,124.37,22.72027779]
[1766913109574,0.72,124.4,124.38,1.93901072]
[1766913110070,0.72,124.4,124.37,22.72027779]
[1766913110270,0.72,124.4,124.38,1.93901072]
[1766913110449,1.93901072,124.43,124.38,9.97882559]
[1766913110645,0.66,124.42,124.4,1.93901072]
[1766913114396,0.66,124.42,124.38,8.03981487]
[1766913114679,0.66,124.42,124.4,1.93901072]
[1766913118273,0.66,124.42,124.39,1.93901072]
[1766913121290,0.66,124.42,124.39,9.97819129]
[1766913121581,0.66,124.45,124.4,16.61901072]
[1766913121788,0.66,124.45,124.41,1.93901072]
[1766913122163,0.66,124.44,124.4,16.61901072]
[1766913122365,0.66,124.44,124.41,1.93901072]
[1766913124085,0.66,124.44,124.4,16.61901072]
[1766913126391,0.66,124.44,124.41,1.93901072]
[1766913135328,8.03433707,124.47,124.42,1.93901072]
[1766913135500,0.66,124.46,124.43,1.93901072]
[1766913137410,0.66,124.46,124.42,8.03717206]
[1766913137603,0.66,124.46,124.43,1.93901072]
[1766913137986,0.66,124.46,124.44,1.93901072]
[1766913138308,0.66,124.48,124.45,1.93901072]
[1766913138696,1.93901072,124.48,124.44,1.93901072]
[1766913138887,0.66,124.47,124.43,8.03651297]
[1766913139090,0.66,124.47,124.44,1.93901072]
[1766913156637,0.66,124.47,124.45,1.93901072]
[1766913160033,1.93901072,124.47,124.42,8.03729303]
[1766913160214,0.66,124.46,124.43,1.93901072]
[1766913161130,0.66,124.45,124.42,9.97630375]
[1766913161364,0.66,124.45,124.41,71.8767634]
[1766913162046,0.66,124.45,124.41,72.96574207]
[1766913164856,0.66,124.45,124.41,11.06574207]
[1766913165957,0.66,124.45,124.42,3.02798939]
[1766913173058,0.66,124.45,124.43,3.02798939]
[1766913179369,0.66,124.45,124.41,8.03793907]
[1766913179568,0.66,124.45,124.43,3.02798939]
[1766913180065,0.66,124.45,124.42,3.02798939]
[1766913181860,0.66,124.45,124.42,11.06515069]
[1766913183566,0.66,124.45,124.41,8.03793907]
[1766913183768,0.66,124.45,124.42,3.02798939]
[1766913186975,0.66,124.45,124.43,3.02798939]
[1766913187668,0.71,124.47,124.43,3.02798939]
[1766913188170,0.71,124.47,124.41,28.13278675]
[1766913188374,0.71,124.47,124.43,3.02798939]
[1766913188972,0.71,124.47,124.44,3.02798939]
[1766913189154,0.71,124.47,124.44,11.06393744]
[1766913190855,0.71,124.47,124.45,3.02798939]
[1766913195365,0.71,124.47,124.44,11.06393744]
[1766913196687,3.02798939,124.46,124.42,8.71676289]
[1766913196866,3.70798939,124.46,124.43,8.71659646]
[1766913197066,0.68,124.46,124.43,11.74458585]
[1766913201195,0.68,124.46,124.43,3.70798939]
[1766913202195,0.68,124.46,124.43,0.68]
[1766913204090,3.70798939,124.46,124.43,0.68]
[1766913204268,0.68,124.46,124.43,0.68]
[1766913206189,0.68,124.46,124.43,3.70798939]
[1766913208601,0.68,124.46,124.44,0.68]
[1766913214421,0.68,124.46,124.43,3.70798939]
[1766913215909,0.68,124.46,124.43,0.68]
[1766913218402,0.68,124.46,124.43,3.70798939]
[1766913223912,0.68,124.46,124.43,2.61739505]
[1766913227312,0.68,124.46,124.43,9.97402961]
[1766913227606,0.67,124.47,124.44,0.67]
[1766913237827,0.67,124.47,124.44,2.60739505]
[1766913241027,0.67,124.47,124.44,0.67]
[1766913246542,0.66,124.46,124.43,2.62739505]
[1766913246742,0.66,124.45,124.42,0.69]
[1766913250743,0.66,124.45,124.41,1.93739505]
[1766913250945,0.66,124.45,124.41,2.62739505]
[1766913251242,0.66,124.45,124.41,0.69]
[1766913251541,0.66,124.45,124.42,1.93739505]
[1766913252220,0.66,124.45,124.42,2.62739505]
[1766913252422,0.66,124.45,124.42,0.69]
[1766913252720,0.66,124.45,124.42,2.62739505]
[1766913253132,0.66,124.45,124.42,0.69]
[1766913254927,0.66,124.45,124.42,2.62739505]
[1766913263568,0.66,124.45,124.42,0.69]
[1766913263743,0.66,124.45,124.42,2.62739505]
[1766913267476,0.66,124.45,124.42,0.69]
[1766913267854,0.66,124.45,124.42,2.62739505]
[1766913268979,0.66,124.45,124.42,0.69]
[1766913269277,0.66,124.45,124.42,2.62739505]
[1766913275384,0.66,124.45,124.42,0.69]
[1766913275770,0.66,124.45,124.42,2.62739505]
[1766913276761,1.93739505,124.45,124.41,2.61739505]
[1766913276961,0.69,124.44,124.41,2.61739505]
[1766913281065,0.69,124.44,124.41,0.68]
[1766913288109,0.69,124.44,124.41,3.70817363]
[1766913289816,0.69,124.44,124.41,0.68]
[1766913296881,0.69,124.44,124.41,3.70817363]
[1766913300807,0.69,124.44,124.41,0.68]
[1766913301008,0.69,124.44,124.41,3.70817363]
[1766913301195,0.69,124.44,124.41,0.68]
[1766913301506,0.69,124.44,124.41,3.70817363]
[1766913321421,0.69,124.44,124.41,0.68]
[1766913321623,0.69,124.44,124.41,3.70817363]
[1766913328929,0.69,124.44,124.41,0.68]
[1766913329226,0.69,124.44,124.41,3.70817363]
[1766913343941,0.69,124.44,124.41,2.61795992]
[1766913351346,0.69,124.44,124.41,0.68]
[1766913352051,0.69,124.44,124.41,2.61795992]
[1766913354858,0.69,124.44,124.41,0.68]
[1766913355724,0.69,124.44,124.41,2.61795992]
[1766913377494,0.69,124.44,124.4,24.65630406]
[1766913377788,0.69,124.44,124.4,25.37630406]
[1766913381791,0.69,124.44,124.41,1.93795992]
[1766913391799,0.69,124.44,124.41,2.65795992]
[1766913402910,1.93795992,124.43,124.39,24.13806975]
[1766913403210,0.69,124.41,124.38,2.65795992]
[1766913404090,0.69,124.41,124.38,3.74967041]
[1766913404607,0.69,124.41,124.37,3.02967041]
[1766913404808,0.69,124.4,124.36,18.42967041]
[1766913405014,0.66,124.39,124.36,15.4]
[1766913405306,0.66,124.39,124.36,0.72]
[1766913406107,0.66,124.39,124.36,3.74967041]
[1766913411716,0.66,124.39,124.35,18.39967041]
[1766913414915,0.66,124.39,124.35,15.37]
[1766913415217,0.66,124.39,124.35,18.39967041]
[1766913418121,3.02967041,124.39,124.35,17.70967041]
[1766913418296,0.66,124.37,124.34,0.1]
[1766913418502,0.66,124.37,124.34,3.12967041]
[1766913418802,0.66,124.37,124.34,0.1]
[1766913420520,0.66,124.35,124.33,0.1]
[1766913420721,0.66,124.34,124.31,0.1]
[1766913421029,0.66,124.34,124.32,3.71967041]
[1766913422514,0.66,124.37,124.33,3.02967041]
[1766913422714,0.66,124.37,124.34,3.71967041]
[1766913423119,0.66,124.37,124.34,0.69]
[1766913423311,15.36,124.37,124.34,0.69]
[1766913423516,0.66,124.36,124.34,0.69]
[1766913424224,0.66,124.36,124.34,3.71967041]
[1766913425021,0.66,124.36,124.34,0.69]
[1766913429217,3.02967041,124.4,124.34,0.69]
[1766913429218,0.66,124.4,124.36,0.69]
[1766913429416,0.66,124.4,124.37,3.02967041]
[1766913433942,0.66,124.4,124.36,3.71967041]
[1766913436037,0.66,124.4,124.36,26.45903927]
[1766913436825,0.66,124.4,124.36,3.71967041]
[1766913437326,0.66,124.4,124.36,3.02967041]
[1766913437624,0.66,124.4,124.37,0.7]
[1766913438640,3.68967041,124.4,124.37,0.7]
[1766913438849,3.02967041,124.4,124.37,0.7]
[1766913439056,0.71,124.39,124.37,0.7]
[1766913442149,0.71,124.39,124.36,3.02967041]
[1766913442455,0.71,124.39,124.36,3.72967041]
[1766913444444,0.71,124.39,124.37,3.02967041]
[1766913444639,0.71,124.39,124.37,3.72967041]
[1766913445640,0.71,124.39,124.37,0.7]
[1766913474194,0.71,124.39,124.36,2.61951012]
[1766913474890,0.71,124.39,124.36,0.68]
[1766913475188,0.71,124.39,124.36,2.61951012]
[1766913475355,0.71,124.39,124.36,0.68]
[1766913475750,0.71,124.39,124.36,2.61951012]
[1766913481276,0.71,124.39,124.36,0.68]
[1766913481483,0.71,124.39,124.36,2.61951012]
[1766913481656,0.71,124.39,124.36,0.68]
[1766913481857,0.71,124.39,124.36,2.61951012]
[1766913485781,0.71,124.39,124.36,0.68]
[1766913485985,0.71,124.39,124.36,2.61951012]
[1766913488085,0.71,124.39,124.37,1.93951012]
[1766913488284,0.71,124.39,124.36,2.61951012]
[1766913488465,0.71,124.39,124.37,1.93951012]
[1766913488981,0.71,124.39,124.36,2.61951012]
[1766913504675,0.71,124.39,124.36,0.68]
[1766913504875,0.71,124.39,124.36,2.61951012]
[1766913524616,0.66,124.43,124.39,0.7]
[1766913524832,0.66,124.42,124.38,17.33951012]
[1766913525113,0.71,124.41,124.38,17.33951012]
[1766913525889,0.71,124.41,124.38,18.42937914]
[1766913526898,0.71,124.41,124.39,3.02937914]
[1766913527114,0.71,124.41,124.39,3.70937914]
[1766913527992,0.71,124.41,124.39,3.02937914]
[1766913528522,0.71,124.41,124.4,3.02937914]
[1766913528821,0.71,124.41,124.39,3.02937914]
[1766913533022,0.71,124.41,124.38,11.74919004]
[1766913533333,0.66,124.4,124.37,3.69937914]
[1766913533828,0.66,124.4,124.37,11.73978043]
[1766913537029,0.66,124.4,124.38,3.02937914]
[1766913537428,0.66,124.4,124.37,11.73978043]
[1766913542725,0.66,124.4,124.37,8.71040129]
[1766913542933,0.66,124.4,124.37,11.73978043]
[1766913547527,3.02937914,124.42,124.37,11.06978043]
[1766913547832,0.66,124.42,124.38,3.69937914]
[1766913557654,0.66,124.42,124.38,0.67]
[1766913559839,0.66,124.42,124.38,8.70985165]
[1766913567347,0.66,124.42,124.39,0.72]
[1766913569950,0.66,124.42,124.38,8.03985165]
[1766913570254,0.66,124.42,124.38,8.75985165]
[1766913570455,0.66,124.42,124.38,11.78923079]
[1766913573667,0.66,124.42,124.38,8.75985165]
[1766913577549,3.02937914,124.42,124.38,8.75985165]
[1766913577749,0.71,124.41,124.38,0.72]
[1766913586082,0.71,124.41,124.37,8.04026589]
[1766913586290,0.71,124.41,124.37,8.69026589]
[1766913586889,0.71,124.41,124.37,8.04026589]
[1766913587065,0.71,124.41,124.38,0.65]
[1766913603679,0.71,124.41,124.38,2.58929628]
[1766913605903,8.03669826,124.43,124.39,0.67]
[1766913606276,0.68,124.42,124.39,0.67]
[1766913614705,9.97599454,124.43,124.39,0.67]
[1766913614909,2.61929628,124.43,124.39,0.67]
[1766913615511,10.65598714,124.43,124.39,0.67]
[1766913616605,0.68,124.43,124.39,1.93929628]
[1766913616812,0.68,124.43,124.4,2.65929628]
[1766913617285,0.72,124.45,124.41,2.65929628]
[1766913617485,0.72,124.45,124.42,0.72]
[1766913619290,0.72,124.45,124.42,2.65929628]
[1766913620609,0.72,124.45,124.42,0.72]
[1766913620791,39.16202715,124.49,124.41,8.03762102]
[1766913620792,2.65929628,124.44,124.41,0.72]
[1766913621512,0.72,124.44,124.41,0.72]
[1766913640020,0.72,124.44,124.42,0.72]
[1766913640215,1.93929628,124.46,124.42,0.72]
[1766913640421,0.72,124.45,124.42,0.72]
[1766913641310,0.72,124.44,124.41,0.72]
[1766913655440,8.0350225,124.46,124.41,0.72]
[1766913655646,0.71,124.45,124.41,3.74811687]
[1766913660654,0.71,124.45,124.41,2.74799687]
[1766913662726,0.71,124.45,124.41,3.04799687]
[1766913662926,0.71,124.45,124.41,11.08585605]
[1766913663129,0.71,124.45,124.42,0.3]
[1766913664437,0.71,124.45,124.42,3.32811687]
[1766913665024,0.71,124.46,124.43,0.3]
[1766913668855,0.71,124.46,124.42,3.32811687]
[1766913670826,0.71,124.46,124.42,0.3]
[1766913671950,3.73811687,124.46,124.42,0.3]
[1766913672852,3.02811687,124.46,124.42,0.3]
[1766913673054,0.71,124.45,124.42,0.3]
[1766913692968,11.71242327,124.47,124.42,0.3]
[1766913693148,0.65,124.46,124.43,0.3]
[1766913694571,0.65,124.46,124.42,11.36539782]
[1766913709981,0.65,124.46,124.42,10.27468357]
[1766913710778,0.65,124.46,124.43,0.3]
[1766913716687,0.65,124.46,124.42,10.27468357]
[1766913721187,0.7,124.45,124.42,0.3]
[1766913726588,0.7,124.45,124.41,10.27531567]
[1766913732595,0.7,124.45,124.42,1.93740262]
[1766913733797,0.7,124.45,124.42,2.23740262]
[1766913750217,0.7,124.45,124.42,0.3]
[1766913750420,0.7,124.45,124.42,2.23740262]
[1766913757325,0.7,124.45,124.42,0.3]
[1766913763440,0.7,124.45,124.42,2.23740262]
[1766913764937,0.7,124.45,124.42,0.3]
[1766913775629,0.7,124.45,124.41,11.36561437]
[1766913779847,0.7,124.45,124.41,8.33791305]
[1766913796362,0.7,124.45,124.41,11.36561437]
[1766913819500,0.7,124.45,124.42,0.3]
[1766913846322,0.7,124.45,124.41,8.03791305]
[1766913846508,0.7,124.45,124.41,8.33791305]
[1766913851219,0.7,124.45,124.41,10.27559222]
[1766913852923,0.7,124.45,124.42,1.93767917]
[1766913859837,0.7,124.45,124.39,83.92193588]
[1766913860033,0.66,124.42,124.38,1.93767917]
[1766913860228,0.66,124.42,124.38,15.36]
[1766913860437,0.66,124.41,124.38,14.68]
[1766913860638,0.66,124.41,124.38,15.36]
[1766913865735,2.59767917,124.41,124.38,15.36]
[1766913873252,0.66,124.41,124.38,15.36]
[1766913873437,2.59767917,124.41,124.38,15.36]
[1766913875348,0.66,124.39,124.36,14.68]
[1766913875735,0.66,124.39,124.36,0.68]
[1766913881159,0.66,124.39,124.36,1.93767917]
[1766913881342,0.66,124.39,124.37,2.61767917]
[1766913881536,0.66,124.39,124.37,0.68]
[1766913883362,1.93767917,124.41,124.37,0.68]
[1766913883572,0.66,124.4,124.37,0.68]
[1766913885066,0.67,124.43,124.39,0.66]
[1766913886042,0.67,124.43,124.4,0.66]
[1766913886239,0.67,124.43,124.4,2.59767917]
[1766913890866,0.67,124.43,124.4,0.66]
[1766913891166,0.67,124.43,124.4,2.59767917]
[1766913892543,0.67,124.43,124.4,0.66]
[1766913894966,0.72,124.45,124.42,0.68]
[1766913895843,0.72,124.45,124.42,3.70857712]
[1766913897744,0.72,124.45,124.43,3.02857712]
[1766913897944,0.72,124.45,124.44,3.02857712]
[1766913898168,0.72,124.45,124.43,3.02857712]
[1766913899172,0.72,124.45,124.42,3.70857712]
[1766913901472,0.72,124.45,124.42,3.02857712]
[1766913901673,0.72,124.45,124.43,0.68]
[1766913902051,0.72,124.45,124.43,3.70857712]
[1766913902849,8.03362219,124.48,124.43,3.70857712]
[1766913903053,0.72,124.47,124.44,3.70857712]
[1766913903373,0.72,124.47,124.43,3.70857712]
[1766913904373,0.72,124.47,124.44,3.02857712]
[1766913905171,0.72,124.47,124.43,0.68]
[1766913905359,0.72,124.47,124.43,3.02857712]
[1766913907377,0.72,124.47,124.43,3.70857712]
[1766913907674,0.72,124.47,124.44,3.02857712]
[1766913911064,0.72,124.47,124.45,3.70857712]
[1766913911259,0.72,124.47,124.46,3.02857712]
[1766913912883,0.72,124.47,124.45,3.70857712]
[1766913915371,0.72,124.47,124.45,3.02857712]
[1766913918072,0.72,124.47,124.44,3.68857712]
[1766913920585,0.72,124.47,124.44,3.02857712]
[1766913921181,0.72,124.47,124.44,3.68857712]
[1766913923686,0.72,124.47,124.44,0.66]
[1766913926569,3.02857712,124.47,124.42,11.72578321]
[1766913926769,0.69,124.45,124.42,3.68857712]
[1766913929890,0.69,124.45,124.42,3.02857712]
[1766913930468,0.69,124.45,124.42,3.68857712]
[1766913934899,0.69,124.45,124.42,0.66]
[1766913935075,0.69,124.45,124.42,3.68857712]
[1766913937891,0.69,124.45,124.42,3.02857712]
[1766913938109,0.69,124.45,124.41,17.70857712]
[1766913938401,0.69,124.45,124.4,3.68857712]
[1766913938402,0.69,124.43,124.4,3.68857712]
[1766913939293,0.69,124.43,124.4,0.66]
[1766913940804,0.69,124.43,124.4,3.68857712]
[1766913948683,0.69,124.43,124.4,11.72714624]
[1766913949700,0.69,124.43,124.4,8.69856912]
[1766913949903,0.69,124.43,124.4,11.72714624]
[1766913951115,0.66,124.45,124.41,3.73857712]
[1766913952010,0.66,124.45,124.42,3.02857712]
[1766913952510,0.66,124.45,124.41,3.73857712]
[1766913953011,0.66,124.45,124.41,11.77649795]
[1766913953505,0.66,124.45,124.42,3.73857712]
[1766913955910,0.66,124.45,124.42,2.64769337]
[1766913958313,0.66,124.45,124.42,0.71]
[1766913958616,0.66,124.45,124.42,2.64769337]
[1766913960996,0.66,124.45,124.42,0.71]
[1766913963324,0.68,124.44,124.41,2.61769337]
[1766913963621,0.68,124.47,124.44,0.68]
[1766913965421,0.68,124.45,124.42,0.68]
[1766913971102,0.68,124.44,124.41,0.68]
[1766913973333,0.68,124.44,124.41,2.61769337]
[1766913973628,0.68,124.47,124.43,1.93769337]
[1766913973835,0.68,124.47,124.44,2.61769337]
[1766913975834,0.68,124.47,124.44,0.68]
[1766913976139,0.68,124.47,124.44,2.61769337]
[1766913977244,0.68,124.47,124.44,0.68]
[1766913984928,0.68,124.47,124.44,2.61769337]
[1766913988735,0.68,124.47,124.44,0.68]
[1766913988937,0.68,124.47,124.44,2.61769337]
[1766914008286,0.68,124.47,124.44,0.68]
[1766914008485,0.68,124.47,124.44,2.61769337]
[1766914014104,0.68,124.47,124.44,0.68]
[1766914014696,8.71410536,124.47,124.44,0.68]
[1766914015989,8.03410536,124.47,124.43,3.02700187]
[1766914016166,0.69,124.46,124.42,3.71700187]
[1766914016366,0.69,124.45,124.42,3.71700187]
[1766914016792,0.69,124.45,124.43,0.69]
[1766914017308,0.69,124.45,124.42,3.71700187]
[1766914020894,0.69,124.45,124.43,3.02700187]
[1766914021590,0.69,124.47,124.44,3.02700187]
[1766914024589,0.69,124.47,124.43,0.69]
[1766914024887,0.69,124.47,124.44,3.02700187]
[1766914026402,0.69,124.47,124.43,3.71700187]
[1766914029611,0.69,124.47,124.43,0.69]
[1766914029811,0.69,124.47,124.43,3.71700187]
[1766914042929,0.69,124.47,124.37,10.43767296]
[1766914042930,3.02700187,124.46,124.37,10.43767296]
[1766914043099,0.68,124.43,124.4,0.66]
[1766914043695,3.02700187,124.45,124.41,3.68700187]
[1766914043896,0.68,124.44,124.41,3.68700187]
[1766914055236,0.68,124.44,124.42,0.66]
[1766914058340,0.68,124.44,124.41,3.68700187]
[1766914077254,0.68,124.44,124.41,0.66]
[1766914077454,0.68,124.44,124.41,3.68700187]
[1766914077932,0.68,124.44,124.41,2.59808914]
[1766914078653,0.68,124.44,124.42,0.68]
[1766914082163,0.68,124.44,124.4,9.976603]
[1766914082461,1.93808914,124.46,124.41,9.97596699]
[1766914082763,0.71,124.45,124.43,0.68]
[1766914083839,0.71,124.45,124.42,2.61808914]
[1766914087559,0.71,124.45,124.42,0.68]
[1766914089661,2.64808914,124.43,124.4,0.68]
[1766914090049,0.71,124.43,124.4,0.68]
[1766914090437,0.71,124.43,124.4,2.61808914]
[1766914091164,0.71,124.43,124.4,0.68]
[1766914091343,0.71,124.43,124.4,2.61808914]
[1766914097669,0.71,124.43,124.4,1.93808914]
[1766914097963,0.71,124.43,124.41,0.67]
[1766914098167,0.71,124.43,124.4,2.60808914]
[1766914102066,0.71,124.43,124.4,0.67]
[1766914102264,0.71,124.43,124.4,2.60808914]
[1766914102469,0.72,124.47,124.43,0.67]
[1766914102768,0.72,124.47,124.43,2.60808914]
[1766914108470,0.72,124.47,124.43,10.64468519]
[1766914108673,0.72,124.47,124.44,0.67]
[1766914108850,0.72,124.47,124.44,2.60808914]
[1766914117184,0.72,124.47,124.44,0.67]
[1766914117485,0.72,124.47,124.44,2.60808914]
[1766914118693,0.72,124.47,124.45,0.67]
[1766914119087,0.72,124.47,124.44,2.60808914]
[1766914122570,0.72,124.47,124.44,0.67]
[1766914122774,0.72,124.47,124.44,2.60808914]
[1766914125493,0.72,124.47,124.44,0.67]
[1766914125693,0.72,124.47,124.44,2.60808914]
[1766914138007,0.72,124.47,124.44,3.69677669]
[1766914139506,3.74677669,124.47,124.44,0.67]
[1766914143404,0.71,124.46,124.44,0.67]
[1766914144606,0.71,124.47,124.44,0.67]
[1766914150017,0.71,124.47,124.44,3.69677669]
[1766914158915,0.71,124.47,124.44,0.67]
[1766914159102,0.71,124.47,124.44,3.69677669]
[1766914164028,8.03413973,124.47,124.41,84.61777535]
[1766914164319,0.67,124.46,124.43,3.74677669]
[1766914168626,0.67,124.46,124.44,3.02677669]
[1766914170727,0.67,124.46,124.43,3.74677669]
[1766914171027,0.67,124.46,124.44,0.72]
[1766914171830,0.67,124.46,124.43,3.02677669]
[1766914172031,0.67,124.46,124.43,3.74677669]
[1766914172436,0.67,124.46,124.43,0.72]
[1766914172813,0.67,124.46,124.43,3.74677669]
[1766914175037,0.67,124.46,124.44,3.02677669]
[1766914177036,0.67,124.46,124.43,3.74677669]
[1766914193231,0.67,124.46,124.43,3.02677669]
[1766914193845,0.67,124.46,124.42,11.72404344]
[1766914194451,0.67,124.46,124.43,0.66]
[1766914194855,0.67,124.46,124.43,3.68677669]
[1766914199962,0.67,124.46,124.43,2.59733417]
[1766914204570,0.67,124.46,124.44,1.93733417]
[1766914207589,1.93733417,124.46,124.42,1.93733417]
[1766914207775,0.66,124.44,124.41,2.59733417]
[1766914208079,1.93733417,124.44,124.4,2.59733417]
[1766914208392,0.66,124.43,124.4,2.59733417]
[1766914209603,0.66,124.43,124.39,2.59733417]
[1766914210099,8.6966579,124.43,124.39,2.59733417]
[1766914210302,0.66,124.42,124.39,2.59733417]
[1766914210694,0.66,124.42,124.39,0.66]
[1766914210882,0.66,124.42,124.39,2.59733417]
[1766914211215,0.66,124.42,124.39,1.93733417]
[1766914211386,0.66,124.42,124.4,2.59733417]
[1766914215105,0.66,124.42,124.4,0.66]
[1766914215311,0.66,124.42,124.4,1.93733417]
[1766914216207,0.66,124.42,124.39,2.60733417]
[1766914216707,0.66,124.42,124.4,0.67]
[1766914217125,0.71,124.43,124.4,0.67]
[1766914218743,0.71,124.43,124.4,2.60733417]
[1766914221717,0.71,124.43,124.4,0.67]
[1766914225820,2.64733417,124.43,124.39,1.93733417]
[1766914226013,0.71,124.42,124.39,2.60733417]
[1766914228633,0.71,124.42,124.4,1.93733417]
[1766914232038,0.71,124.42,124.39,2.60733417]
[1766914233439,0.71,124.45,124.41,0.67]
[1766914233627,0.71,124.44,124.41,2.60733417]
[1766914233829,0.71,124.45,124.42,2.60733417]
[1766914234135,2.64733417,124.46,124.43,0.67]
[1766914234314,0.71,124.45,124.43,2.60733417]
[1766914234514,14.68,124.47,124.44,0.67]
[1766914234713,0.71,124.46,124.44,0.67]
[1766914235917,0.71,124.46,124.42,8.03699513]
[1766914236128,0.71,124.46,124.43,2.60733417]
[1766914244724,0.71,124.46,124.44,0.67]
[1766914257866,0.71,124.46,124.44,2.60733417]
[1766914259967,0.71,124.46,124.44,0.67]
[1766914262563,11.73043972,124.48,124.44,3.02700948]
[1766914262770,11.06043972,124.48,124.45,0.69]
[1766914262971,0.67,124.47,124.45,0.63900001]
[1766914263272,0.67,124.47,124.44,3.02700948]
[1766914265055,0.67,124.47,124.44,3.71700948]
[1766914289106,0.67,124.47,124.44,0.69]
[1766914298218,0.67,124.47,124.44,3.71700948]
[1766914307230,0.67,124.47,124.45,0.67]
[1766914311233,0.67,124.47,124.44,3.02700948]
[1766914311409,0.67,124.47,124.44,3.74700948]
[1766914319959,0.67,124.47,124.44,2.65707903]
[1766914322052,0.67,124.47,124.44,0.72]
[1766914329270,0.67,124.46,124.44,0.72]
[1766914330071,0.67,124.46,124.43,1.93707903]
[1766914332248,0.67,124.46,124.43,2.65707903]
[1766914340958,0.67,124.46,124.44,1.93707903]
[1766914345080,0.67,124.46,124.43,2.65707903]
[1766914362908,0.67,124.46,124.43,0.72]
[1766914363705,0.67,124.46,124.43,2.65707903]
[1766914369409,0.67,124.46,124.43,0.72]
[1766914369610,0.67,124.46,124.43,2.65707903]
[1766914373413,1.93707903,124.46,124.42,8.03728575]
[1766914373609,0.69,124.45,124.42,0.71]
[1766914373910,0.69,124.45,124.42,2.64707903]
[1766914374210,0.69,124.45,124.41,16.61707903]
[1766914374378,0.69,124.45,124.41,17.32707903]
[1766914374782,0.69,124.45,124.42,1.93707903]
[1766914375512,1.93707903,124.45,124.41,15.39]
[1766914375704,0.68,124.42,124.39,0.67]
[1766914376210,0.68,124.42,124.39,2.60707903]
[1766914376391,0.68,124.41,124.38,0.67]
[1766914376582,0.68,124.41,124.38,2.60707903]
[1766914379920,0.68,124.41,124.39,0.67]
[1766914380220,0.68,124.41,124.39,3.69957448]
[1766914382317,3.02957448,124.43,124.39,3.69957448]
[1766914382521,0.68,124.42,124.39,3.69957448]
[1766914385920,0.68,124.43,124.4,0.67]
[1766914386131,0.68,124.43,124.39,3.69957448]
[1766914387031,3.70957448,124.43,124.39,3.69957448]
[1766914387330,0.68,124.42,124.39,3.69957448]
[1766914388830,0.68,124.4,124.37,0.67]
[1766914389026,0.68,124.4,124.38,0.67]
[1766914391229,0.68,124.4,124.37,3.02957448]
[1766914391230,0.68,124.38,124.35,11.73628769]
[1766914391412,3.70957448,124.38,124.35,8.70671321]
[1766914391815,3.70957448,124.38,124.35,0.67]
[1766914394538,3.02957448,124.38,124.35,0.67]
[1766914394837,0.68,124.37,124.34,3.69957448]
[1766914395132,0.68,124.37,124.35,0.69]
[1766914395335,0.68,124.37,124.34,3.71957448]